[Event "Titled Tuesday Blitz April 18 Early 2023"]
[White "Coelho, Ramyres Santana"]
[Black "Topalov, Aleksandar"]
[WhiteFideId "2120690"]
[BlackFideId "925659"]
[WhiteElo "1888"]
[BlackElo "2151"]
[Result "0-1"]
[Round "07"]
[TimeControl "180+2"]
[Date "2023.04.18"]
[WhiteClock "0:01:02"]
[BlackClock "0:00:47"]

1. e4 {[%clk 0:02:56]}  e6 {[%clk 0:02:33]} 2. d4 {[%clk 0:02:55]}  d5 {[%clk 0:02:33]} 3. Nc3 {[%clk 0:02:56]}  Bb4 {[%clk 0:02:32]} 4. e5 {[%clk 0:02:56]}  Qd7 {[%clk 0:02:32]} 5. a3 {[%clk 0:02:55]}  Bxc3+ {[%clk 0:02:32]} 6. bxc3 {[%clk 0:02:56]}  b6 {[%clk 0:02:31]} 7. Qg4 {[%clk 0:02:57]}  f5 {[%clk 0:02:30]} 8. Qf4 {[%clk 0:02:52]}  Qf7 {[%clk 0:02:29]} 9. Nf3 {[%clk 0:02:51]}  h6 {[%clk 0:02:28]} 10. h4 {[%clk 0:02:51]}  Ba6 {[%clk 0:02:28]} 11. Bxa6 {[%clk 0:02:49]}  Nxa6 {[%clk 0:02:28]} 12. O-O {[%clk 0:02:46]}  Nb8 {[%clk 0:02:27]} 13. a4 {[%clk 0:02:46]}  Nc6 {[%clk 0:02:27]} 14. Ba3 {[%clk 0:02:45]}  Nge7 {[%clk 0:02:23]} 15. Nd2 {[%clk 0:02:38]}  O-O {[%clk 0:02:13]} 16. Qh2 {[%clk 0:02:16]}  Qh5 {[%clk 0:02:04]} 17. f4 {[%clk 0:02:14]}  Rfd8 {[%clk 0:01:56]} 18. Rf3 {[%clk 0:02:02]}  Ng6 {[%clk 0:01:52]} 19. g3 {[%clk 0:02:03]}  Na5 {[%clk 0:01:50]} 20. Raf1 {[%clk 0:02:02]}  Qg4 {[%clk 0:01:43]} 21. Qg2 {[%clk 0:01:57]}  Nc4 {[%clk 0:01:38]} 22. Nxc4 {[%clk 0:01:57]}  dxc4 {[%clk 0:01:38]} 23. Kh2 {[%clk 0:01:49]}  Rd5 {[%clk 0:01:31]} 24. Qh3 {[%clk 0:01:48]}  Qh5 {[%clk 0:01:31]} 25. Rg1 {[%clk 0:01:43]}  c5 {[%clk 0:01:22]} 26. dxc5 {[%clk 0:01:25]}  Qxf3 {[%clk 0:01:17]} 27. cxb6 {[%clk 0:01:15]}  Rd2+ {[%clk 0:01:16]} 28. Rg2 {[%clk 0:01:15]}  Rxg2+ {[%clk 0:01:16]} 29. Qxg2 {[%clk 0:01:16]}  Qxg2+ {[%clk 0:01:16]} 30. Kxg2 {[%clk 0:01:17]}  axb6 {[%clk 0:01:17]} 31. h5 {[%clk 0:01:16]}  Rxa4 {[%clk 0:01:11]} 32. Bd6 {[%clk 0:01:12]}  Nf8 {[%clk 0:01:10]} 33. Kf3 {[%clk 0:01:09]}  Ra2 {[%clk 0:01:07]} 34. Ke3 {[%clk 0:01:09]}  Rxc2 {[%clk 0:01:07]} 35. Kd4 {[%clk 0:01:09]}  Rg2 {[%clk 0:00:53]} 36. Kxc4 {[%clk 0:01:06]}  Rxg3 {[%clk 0:00:53]} 37. Bb4 {[%clk 0:01:07]}  Rg4 {[%clk 0:00:47]} 38. Kb5 {[%clk 0:01:06]}  Rxf4 {[%clk 0:00:48]} 39. Kxb6 {[%clk 0:01:06]}  Nd7+ {[%clk 0:00:48]} 40. Kc6 {[%clk 0:01:06]}  Nxe5+ {[%clk 0:00:48]} 41. Kd6 {[%clk 0:01:06]}  Nd3 {[%clk 0:00:48]} 42. Kxe6 {[%clk 0:01:00]}  Nxb4 {[%clk 0:00:48]} 43. cxb4 {[%clk 0:01:00]}  Rxb4 {[%clk 0:00:48]} 44. Kxf5 {[%clk 0:01:01]}  Rb5+ {[%clk 0:00:48]} 45. Kg6 {[%clk 0:01:02]}  Rg5# {[%clk 0:00:47]} 0-1


[Site "https://www.chess.com"]

[Event "Titled Tuesday Blitz April 18 Early 2023"]
[White "Thomas, Anysia"]
[Black "Corredor Castellanos, Camilo"]
[WhiteFideId "670472"]
[BlackFideId "4425871"]
[WhiteElo "2091"]
[BlackElo "1994"]
[Result "1-0"]
[Round "07"]
[TimeControl "180+2"]
[Date "2023.04.18"]
[WhiteClock "0:00:06"]
[BlackClock "0:00:18"]

1. d4 {[%clk 0:03:00]}  Nf6 {[%clk 0:02:59]} 2. c4 {[%clk 0:03:01]}  e6 {[%clk 0:02:59]} 3. Nf3 {[%clk 0:03:00]}  d5 {[%clk 0:02:59]} 4. g3 {[%clk 0:03:01]}  c6 {[%clk 0:02:52]} 5. Bg2 {[%clk 0:02:57]}  Be7 {[%clk 0:02:52]} 6. O-O {[%clk 0:02:57]}  O-O {[%clk 0:02:53]} 7. Qc2 {[%clk 0:02:58]}  a5 {[%clk 0:02:30]} 8. Nbd2 {[%clk 0:02:56]}  Na6 {[%clk 0:02:29]} 9. a3 {[%clk 0:02:53]}  Nc7 {[%clk 0:02:22]} 10. e4 {[%clk 0:02:53]}  dxe4 {[%clk 0:02:21]} 11. Nxe4 {[%clk 0:02:54]}  a4 {[%clk 0:02:09]} 12. Bf4 {[%clk 0:02:42]}  Nce8 {[%clk 0:01:58]} 13. Rad1 {[%clk 0:02:39]}  Ra5 {[%clk 0:01:57]} 14. h4 {[%clk 0:02:32]}  Qb6 {[%clk 0:01:55]} 15. c5 {[%clk 0:02:17]}  Qb3 {[%clk 0:01:46]} 16. Qc1 {[%clk 0:02:03]}  Nxe4 {[%clk 0:01:44]} 17. Nd2 {[%clk 0:01:37]}  Nxd2 {[%clk 0:01:43]} 18. Qxd2 {[%clk 0:01:37]}  Nf6 {[%clk 0:01:31]} 19. Qxa5 {[%clk 0:01:34]}  Qxb2 {[%clk 0:01:31]} 20. Qxa4 {[%clk 0:01:27]}  Nd5 {[%clk 0:01:31]} 21. Rb1 {[%clk 0:01:18]}  Qa2 {[%clk 0:01:12]} 22. Be3 {[%clk 0:00:58]}  Nxe3 {[%clk 0:01:05]} 23. fxe3 {[%clk 0:00:57]}  Qe2 {[%clk 0:01:05]} 24. Rbe1 {[%clk 0:00:49]}  Qg4 {[%clk 0:01:05]} 25. Kh2 {[%clk 0:00:40]}  e5 {[%clk 0:01:05]} 26. Qd1 {[%clk 0:00:33]}  Qe6 {[%clk 0:01:01]} 27. Qf3 {[%clk 0:00:30]}  f5 {[%clk 0:00:59]} 28. Qh5 {[%clk 0:00:20]}  g6 {[%clk 0:00:57]} 29. Qe2 {[%clk 0:00:19]}  Bf6 {[%clk 0:00:54]} 30. Qd2 {[%clk 0:00:14]}  Rd8 {[%clk 0:00:53]} 31. Rd1 {[%clk 0:00:11]}  exd4 {[%clk 0:00:51]} 32. exd4 {[%clk 0:00:09]}  Rxd4 {[%clk 0:00:51]} 33. Qe1 {[%clk 0:00:09]}  Rxd1 {[%clk 0:00:23]} 34. Qxe6+ {[%clk 0:00:08]}  Bxe6 {[%clk 0:00:24]} 35. Rxd1 {[%clk 0:00:08]}  Be7 {[%clk 0:00:24]} 36. Re1 {[%clk 0:00:07]}  Kf7 {[%clk 0:00:24]} 37. Rb1 {[%clk 0:00:08]}  Bc8 {[%clk 0:00:23]} 38. Rc1 {[%clk 0:00:07]}  Be6 {[%clk 0:00:23]} 39. Kg1 {[%clk 0:00:07]}  Bd5 {[%clk 0:00:20]} 40. Bxd5+ {[%clk 0:00:06]}  cxd5 {[%clk 0:00:21]} 41. Rb1 {[%clk 0:00:06]}  Bxc5+ {[%clk 0:00:21]} 42. Kg2 {[%clk 0:00:07]}  Bxa3 {[%clk 0:00:20]} 43. Rxb7+ {[%clk 0:00:06]}  Be7 {[%clk 0:00:20]} 44. Kf3 {[%clk 0:00:06]}  Ke6 {[%clk 0:00:19]} 45. Ke3 {[%clk 0:00:06]}  h6 {[%clk 0:00:20]} 46. Rb6+ {[%clk 0:00:06]}  Kf7 {[%clk 0:00:18]} 47. Kd4 {[%clk 0:00:06]} 1-0


[Site "https://www.chess.com"]

[Event "Titled Tuesday Blitz April 18 Early 2023"]
[White "Zacurdajev, Dmitry"]
[Black "Bashirli, Saadat"]
[WhiteFideId "4196309"]
[BlackFideId "13429990"]
[WhiteElo "2189"]
[BlackElo "1408"]
[Result "1-0"]
[Round "07"]
[TimeControl "180+2"]
[Date "2023.04.18"]
[WhiteClock "0:00:10"]
[BlackClock "0:00:04"]

1. d4 {[%clk 0:03:00]}  d5 {[%clk 0:02:57]} 2. c4 {[%clk 0:02:59]}  e6 {[%clk 0:02:54]} 3. Nc3 {[%clk 0:02:59]}  c6 {[%clk 0:02:54]} 4. Nf3 {[%clk 0:02:58]}  Nf6 {[%clk 0:02:53]} 5. Bg5 {[%clk 0:02:58]}  Be7 {[%clk 0:02:52]} 6. e3 {[%clk 0:02:58]}  Nbd7 {[%clk 0:02:50]} 7. Qc2 {[%clk 0:02:56]}  h6 {[%clk 0:02:49]} 8. Bh4 {[%clk 0:02:56]}  O-O {[%clk 0:02:46]} 9. Rd1 {[%clk 0:02:56]}  dxc4 {[%clk 0:02:43]} 10. Bxc4 {[%clk 0:02:55]}  b5 {[%clk 0:02:43]} 11. Be2 {[%clk 0:02:50]}  Bb7 {[%clk 0:02:42]} 12. Ne5 {[%clk 0:02:43]}  Qc7 {[%clk 0:02:38]} 13. Nxd7 {[%clk 0:02:36]}  Qxd7 {[%clk 0:02:35]} 14. O-O {[%clk 0:02:35]}  Rfd8 {[%clk 0:02:32]} 15. Bxf6 {[%clk 0:02:32]}  Bxf6 {[%clk 0:02:32]} 16. Ne4 {[%clk 0:02:33]}  Be7 {[%clk 0:02:31]} 17. Rc1 {[%clk 0:02:30]}  a6 {[%clk 0:02:24]} 18. Bf3 {[%clk 0:02:30]}  Rac8 {[%clk 0:02:19]} 19. Nc5 {[%clk 0:02:29]}  Bxc5 {[%clk 0:02:19]} 20. Qxc5 {[%clk 0:02:29]}  Ba8 {[%clk 0:02:16]} 21. b4 {[%clk 0:02:26]}  Qd6 {[%clk 0:02:10]} 22. a3 {[%clk 0:02:21]}  Kf8 {[%clk 0:02:01]} 23. Qh5 {[%clk 0:02:06]}  Rc7 {[%clk 0:01:53]} 24. Rc5 {[%clk 0:02:06]}  Rdc8 {[%clk 0:01:45]} 25. Be4 {[%clk 0:02:01]}  Ke7 {[%clk 0:01:40]} 26. f4 {[%clk 0:02:00]}  Re8 {[%clk 0:00:58]} 27. f5 {[%clk 0:01:39]}  Kd8 {[%clk 0:00:54]} 28. f6 {[%clk 0:01:37]}  Qf8 {[%clk 0:00:41]} 29. Qe5 {[%clk 0:01:22]}  g6 {[%clk 0:00:35]} 30. Rfc1 {[%clk 0:01:16]}  Kd7 {[%clk 0:00:34]} 31. Bf3 {[%clk 0:00:42]}  Qd6 {[%clk 0:00:31]} 32. Qe4 {[%clk 0:00:19]}  Rec8 {[%clk 0:00:26]} 33. Bg4 {[%clk 0:00:19]}  Re8 {[%clk 0:00:24]} 34. d5 {[%clk 0:00:14]}  Rcc8 {[%clk 0:00:06]} 35. dxe6+ {[%clk 0:00:12]}  Kc7 {[%clk 0:00:06]} 36. h3 {[%clk 0:00:01]}  fxe6 {[%clk 0:00:05]} 37. Qxg6 {[%clk 0:00:02]}  Rcd8 {[%clk 0:00:04]} 38. Qxh6 {[%clk 0:00:02]}  e5 {[%clk 0:00:03]} 39. Qg7+ {[%clk 0:00:02]}  Kb6 {[%clk 0:00:02]} 40. f7 {[%clk 0:00:03]}  Rf8 {[%clk 0:00:01]} 41. Qg5 {[%clk 0:00:01]}  Qc7 {[%clk 0:00:01]} 42. Rxe5 {[%clk 0:00:02]}  Rxf7 {[%clk 0:00:02]} 43. Rf5 {[%clk 0:00:01]}  Rfd7 {[%clk 0:00:02]} 44. Rf2 {[%clk 0:00:01]}  Re7 {[%clk 0:00:02]} 45. Rcf1 {[%clk 0:00:02]}  Rde8 {[%clk 0:00:02]} 46. Qf4 {[%clk 0:00:02]}  Qa7 {[%clk 0:00:02]} 47. e4 {[%clk 0:00:02]}  Qb7 {[%clk 0:00:02]} 48. Qd2 {[%clk 0:00:03]}  Ka7 {[%clk 0:00:02]} 49. Qd4+ {[%clk 0:00:04]}  Kb8 {[%clk 0:00:03]} 50. Bf3 {[%clk 0:00:04]}  c5 {[%clk 0:00:02]} 51. Qxc5 {[%clk 0:00:04]}  Rc7 {[%clk 0:00:03]} 52. Qd6 {[%clk 0:00:05]}  Ka7 {[%clk 0:00:01]} 53. Qg3 {[%clk 0:00:05]}  Rd7 {[%clk 0:00:02]} 54. Re2 {[%clk 0:00:06]}  Kb6 {[%clk 0:00:02]} 55. Qf2+ {[%clk 0:00:07]}  Kc7 {[%clk 0:00:01]} 56. Rc2+ {[%clk 0:00:07]}  Kb8 {[%clk 0:00:02]} 57. Rfc1 {[%clk 0:00:08]}  Red8 {[%clk 0:00:03]} 58. e5 {[%clk 0:00:08]}  Qa7 {[%clk 0:00:02]} 59. Bxa8 {[%clk 0:00:08]}  Qxa8 {[%clk 0:00:03]} 60. e6 {[%clk 0:00:07]}  Rd1+ {[%clk 0:00:02]} 61. Rxd1 {[%clk 0:00:08]}  Rxd1+ {[%clk 0:00:02]} 62. Kh2 {[%clk 0:00:09]}  Qb7 {[%clk 0:00:02]} 63. Qg3+ {[%clk 0:00:09]}  Ka7 {[%clk 0:00:02]} 64. Rc7 {[%clk 0:00:09]}  Re1 {[%clk 0:00:01]} 65. Rxb7+ {[%clk 0:00:09]}  Kxb7 {[%clk 0:00:02]} 66. Qxe1 {[%clk 0:00:09]}  Kc7 {[%clk 0:00:02]} 67. e7 {[%clk 0:00:09]}  Kd7 {[%clk 0:00:03]} 68. e8=Q+ {[%clk 0:00:10]}  Kd6 {[%clk 0:00:04]} 69. Q1e5# {[%clk 0:00:10]} 1-0


[Site "https://www.chess.com"]

[Event "Titled Tuesday Blitz April 18 Early 2023"]
[White "Antonova, Nadezhda"]
[Black "Lach, Aleksandra"]
[WhiteFideId "14700182"]
[BlackFideId "1134299"]
[WhiteElo "1765"]
[BlackElo "2111"]
[Result "0-1"]
[Round "07"]
[TimeControl "180+2"]
[Date "2023.04.18"]
[WhiteClock "0:00:03"]
[BlackClock "0:00:09"]

1. Nf3 {[%clk 0:02:58]}  f5 {[%clk 0:02:55]} 2. b3 {[%clk 0:02:59]}  d6 {[%clk 0:02:54]} 3. Bb2 {[%clk 0:03:00]}  e5 {[%clk 0:02:54]} 4. d3 {[%clk 0:02:59]}  Nf6 {[%clk 0:02:54]} 5. g3 {[%clk 0:02:59]}  g6 {[%clk 0:02:53]} 6. Bg2 {[%clk 0:02:59]}  Bg7 {[%clk 0:02:54]} 7. O-O {[%clk 0:03:00]}  O-O {[%clk 0:02:54]} 8. Nbd2 {[%clk 0:03:00]}  Nc6 {[%clk 0:02:53]} 9. e4 {[%clk 0:02:59]}  f4 {[%clk 0:02:52]} 10. gxf4 {[%clk 0:02:49]}  exf4 {[%clk 0:02:53]} 11. d4 {[%clk 0:02:48]}  Bg4 {[%clk 0:02:45]} 12. e5 {[%clk 0:02:45]}  dxe5 {[%clk 0:02:26]} 13. dxe5 {[%clk 0:02:45]}  Nd5 {[%clk 0:02:25]} 14. Qe2 {[%clk 0:02:27]}  Re8 {[%clk 0:01:57]} 15. Rad1 {[%clk 0:02:26]}  Bxe5 {[%clk 0:01:37]} 16. Bxe5 {[%clk 0:02:09]}  Nxe5 {[%clk 0:01:37]} 17. Ne4 {[%clk 0:02:05]}  Qe7 {[%clk 0:00:43]} 18. Rxd5 {[%clk 0:02:01]}  Nxf3+ {[%clk 0:00:43]} 19. Bxf3 {[%clk 0:01:57]}  Bxf3 {[%clk 0:00:44]} 20. Qxf3 {[%clk 0:01:56]}  Qxe4 {[%clk 0:00:44]} 21. Qxe4 {[%clk 0:01:53]}  Rxe4 {[%clk 0:00:45]} 22. Rd7 {[%clk 0:01:53]}  Rc8 {[%clk 0:00:45]} 23. Kg2 {[%clk 0:01:45]}  g5 {[%clk 0:00:44]} 24. Kf3 {[%clk 0:01:43]}  Re6 {[%clk 0:00:43]} 25. Rfd1 {[%clk 0:01:39]}  h6 {[%clk 0:00:37]} 26. R1d2 {[%clk 0:01:23]}  b5 {[%clk 0:00:35]} 27. h4 {[%clk 0:01:11]}  gxh4 {[%clk 0:00:28]} 28. Kxf4 {[%clk 0:01:08]}  Rf8+ {[%clk 0:00:28]} 29. Kg4 {[%clk 0:01:04]}  Re4+ {[%clk 0:00:28]} 30. Kh3 {[%clk 0:01:03]}  Rf3+ {[%clk 0:00:20]} 31. Kg2 {[%clk 0:00:59]}  Rc3 {[%clk 0:00:21]} 32. f3 {[%clk 0:00:40]}  Re6 {[%clk 0:00:21]} 33. Rf2 {[%clk 0:00:27]}  Rf6 {[%clk 0:00:17]} 34. Re2 {[%clk 0:00:24]}  Rfxf3 {[%clk 0:00:11]} 35. Re8+ {[%clk 0:00:20]}  Rf8 {[%clk 0:00:11]} 36. Ree7 {[%clk 0:00:20]}  Rxc2+ {[%clk 0:00:11]} 37. Kh3 {[%clk 0:00:20]}  Rc3+ {[%clk 0:00:11]} 38. Kxh4 {[%clk 0:00:19]}  Rf4+ {[%clk 0:00:11]} 39. Kh5 {[%clk 0:00:18]}  Rh3+ {[%clk 0:00:08]} 40. Kg6 {[%clk 0:00:17]}  Rg4+ {[%clk 0:00:09]} 41. Kf5 {[%clk 0:00:17]}  Rg5+ {[%clk 0:00:09]} 42. Kf4 {[%clk 0:00:17]}  Rh4+ {[%clk 0:00:10]} 43. Kf3 {[%clk 0:00:17]}  Rf5+ {[%clk 0:00:09]} 44. Kg3 {[%clk 0:00:15]}  Rhf4 {[%clk 0:00:09]} 45. Re8+ {[%clk 0:00:13]}  Rf8 {[%clk 0:00:09]} 46. Ree7 {[%clk 0:00:12]}  Rf3+ {[%clk 0:00:09]} 47. Kg2 {[%clk 0:00:12]}  Rf2+ {[%clk 0:00:07]} 48. Kg1 {[%clk 0:00:11]}  Rf1+ {[%clk 0:00:08]} 49. Kg2 {[%clk 0:00:11]}  R8f2+ {[%clk 0:00:07]} 50. Kg3 {[%clk 0:00:12]}  Rf7 {[%clk 0:00:07]} 51. Re8+ {[%clk 0:00:10]}  Kg7 {[%clk 0:00:07]} 52. Rdd8 {[%clk 0:00:09]}  R7f3+ {[%clk 0:00:06]} 53. Kg4 {[%clk 0:00:08]}  Rf4+ {[%clk 0:00:06]} 54. Kg3 {[%clk 0:00:08]}  Rf7 {[%clk 0:00:06]} 55. Rg8+ {[%clk 0:00:07]}  Kf6 {[%clk 0:00:06]} 56. Rh8 {[%clk 0:00:07]}  Rg1+ {[%clk 0:00:07]} 57. Kh2 {[%clk 0:00:07]}  Rg6 {[%clk 0:00:08]} 58. Ra8 {[%clk 0:00:06]}  Kg5 {[%clk 0:00:07]} 59. Rxa7 {[%clk 0:00:06]}  Kh5 {[%clk 0:00:08]} 60. Ra5 {[%clk 0:00:03]}  c6 {[%clk 0:00:08]} 61. a4 {[%clk 0:00:03]}  Rf2+ {[%clk 0:00:08]} 62. Kh1 {[%clk 0:00:04]}  Rf1+ {[%clk 0:00:09]} 63. Kh2 {[%clk 0:00:04]}  Rf2+ {[%clk 0:00:09]} 64. Kh1 {[%clk 0:00:04]}  Rf3 {[%clk 0:00:10]} 65. Kh2 {[%clk 0:00:03]}  Rxb3 {[%clk 0:00:10]} 66. axb5 {[%clk 0:00:03]}  Rxb5 {[%clk 0:00:11]} 67. Raa8 {[%clk 0:00:03]}  Rb2+ {[%clk 0:00:10]} 68. Kh3 {[%clk 0:00:03]}  Rb3+ {[%clk 0:00:11]} 69. Kh2 {[%clk 0:00:03]}  Rb5 {[%clk 0:00:11]} 70. Rac8 {[%clk 0:00:03]}  c5 {[%clk 0:00:11]} 71. Rc7 {[%clk 0:00:03]}  c4 {[%clk 0:00:07]} 72. Rhc8 {[%clk 0:00:02]}  Rbg5 {[%clk 0:00:07]} 73. Rxc4 {[%clk 0:00:02]}  Rg2+ {[%clk 0:00:07]} 74. Kh1 {[%clk 0:00:02]}  Rg1+ {[%clk 0:00:08]} 75. Kh2 {[%clk 0:00:03]}  R6g2+ {[%clk 0:00:08]} 76. Kh3 {[%clk 0:00:03]}  Rg5 {[%clk 0:00:09]} 77. R8c5 {[%clk 0:00:03]}  Rh1# {[%clk 0:00:09]} 0-1


[Site "https://www.chess.com"]

[Event "Titled Tuesday Blitz April 18 Early 2023"]
[White "Ciuffoletti, Paolo"]
[Black "Begunov, Konstantin"]
[WhiteFideId "807630"]
[BlackFideId "4118510"]
[WhiteElo "2143"]
[BlackElo "2087"]
[Result "0-1"]
[Round "07"]
[TimeControl "180+2"]
[Date "2023.04.18"]
[WhiteClock "0:00:02"]
[BlackClock "0:00:22"]

1. e4 {[%clk 0:02:58]}  c5 {[%clk 0:02:57]} 2. d4 {[%clk 0:02:58]}  cxd4 {[%clk 0:02:57]} 3. c3 {[%clk 0:02:58]}  Nf6 {[%clk 0:02:58]} 4. e5 {[%clk 0:02:58]}  Nd5 {[%clk 0:02:58]} 5. Qxd4 {[%clk 0:02:58]}  e6 {[%clk 0:02:57]} 6. Bc4 {[%clk 0:02:58]}  Nc6 {[%clk 0:02:58]} 7. Qe4 {[%clk 0:02:58]}  Nde7 {[%clk 0:02:58]} 8. Bf4 {[%clk 0:02:35]}  Ng6 {[%clk 0:02:56]} 9. Bg3 {[%clk 0:02:36]}  Qc7 {[%clk 0:02:56]} 10. Nf3 {[%clk 0:02:01]}  b6 {[%clk 0:02:52]} 11. O-O {[%clk 0:01:50]}  Bb7 {[%clk 0:02:50]} 12. Qe2 {[%clk 0:01:45]}  h5 {[%clk 0:01:47]} 13. h4 {[%clk 0:01:39]}  Nce7 {[%clk 0:01:44]} 14. Bd3 {[%clk 0:01:21]}  Qc6 {[%clk 0:01:39]} 15. Nbd2 {[%clk 0:01:18]}  Nf5 {[%clk 0:01:38]} 16. Be4 {[%clk 0:00:54]}  Qc7 {[%clk 0:01:26]} 17. Bxf5 {[%clk 0:00:51]}  exf5 {[%clk 0:01:25]} 18. e6 {[%clk 0:00:51]}  f4 {[%clk 0:01:20]} 19. exf7+ {[%clk 0:00:47]}  Kxf7 {[%clk 0:01:17]} 20. Ng5+ {[%clk 0:00:46]}  Kg8 {[%clk 0:01:13]} 21. Bh2 {[%clk 0:00:39]}  Nxh4 {[%clk 0:01:07]} 22. g3 {[%clk 0:00:20]}  Nf5 {[%clk 0:00:55]} 23. Qd3 {[%clk 0:00:17]}  g6 {[%clk 0:00:48]} 24. gxf4 {[%clk 0:00:14]}  Be7 {[%clk 0:00:37]} 25. Ndf3 {[%clk 0:00:12]}  Kg7 {[%clk 0:00:32]} 26. Rfe1 {[%clk 0:00:11]}  Bf6 {[%clk 0:00:30]} 27. Rad1 {[%clk 0:00:10]}  Rad8 {[%clk 0:00:30]} 28. Ne5 {[%clk 0:00:10]}  Rhe8 {[%clk 0:00:25]} 29. Nxg6 {[%clk 0:00:05]}  Kxg6 {[%clk 0:00:23]} 30. Rxe8 {[%clk 0:00:02]}  Rxe8 {[%clk 0:00:24]} 31. Qxd7 {[%clk 0:00:02]}  Qxd7 {[%clk 0:00:22]} 0-1


[Site "https://www.chess.com"]

[Event "Titled Tuesday Blitz April 18 Early 2023"]
[White "Tuleyeva-Aketayeva, Dana"]
[Black "Petrova, Irina"]
[WhiteFideId "13701932"]
[BlackFideId "14124122"]
[WhiteElo "2030"]
[BlackElo "2084"]
[Result "0-1"]
[Round "07"]
[TimeControl "180+2"]
[Date "2023.04.18"]
[WhiteClock "0:00:01"]
[BlackClock "0:00:53"]

1. d4 {[%clk 0:03:00]}  d6 {[%clk 0:03:00]} 2. Nf3 {[%clk 0:03:00]}  g6 {[%clk 0:03:01]} 3. g3 {[%clk 0:03:00]}  Bg7 {[%clk 0:03:01]} 4. Bg2 {[%clk 0:03:00]}  Nf6 {[%clk 0:02:56]} 5. O-O {[%clk 0:03:01]}  O-O {[%clk 0:02:56]} 6. c4 {[%clk 0:03:01]}  Nc6 {[%clk 0:02:57]} 7. Nc3 {[%clk 0:03:00]}  Bf5 {[%clk 0:02:52]} 8. Re1 {[%clk 0:02:46]}  Ne4 {[%clk 0:02:51]} 9. Nh4 {[%clk 0:02:31]}  Nxc3 {[%clk 0:02:47]} 10. bxc3 {[%clk 0:02:31]}  Bd7 {[%clk 0:02:46]} 11. e4 {[%clk 0:02:24]}  e5 {[%clk 0:02:39]} 12. Be3 {[%clk 0:02:21]}  Qf6 {[%clk 0:02:14]} 13. d5 {[%clk 0:02:08]}  Na5 {[%clk 0:02:03]} 14. Bf1 {[%clk 0:01:42]}  b6 {[%clk 0:01:54]} 15. Ng2 {[%clk 0:01:33]}  Bc8 {[%clk 0:01:34]} 16. f4 {[%clk 0:01:05]}  exf4 {[%clk 0:01:30]} 17. Bd4 {[%clk 0:01:05]}  Qe7 {[%clk 0:01:20]} 18. gxf4 {[%clk 0:01:02]}  Ba6 {[%clk 0:01:20]} 19. Bxg7 {[%clk 0:00:44]}  Kxg7 {[%clk 0:01:21]} 20. Qd4+ {[%clk 0:00:45]}  Qf6 {[%clk 0:01:21]} 21. e5 {[%clk 0:00:45]}  dxe5 {[%clk 0:01:16]} 22. fxe5 {[%clk 0:00:45]}  Qg5 {[%clk 0:01:16]} 23. Re4 {[%clk 0:00:16]}  Rae8 {[%clk 0:01:10]} 24. Rae1 {[%clk 0:00:16]}  Kg8 {[%clk 0:01:10]} 25. Kh1 {[%clk 0:00:10]}  Nb7 {[%clk 0:01:08]} 26. Rg4 {[%clk 0:00:06]}  Qe7 {[%clk 0:01:05]} 27. e6 {[%clk 0:00:04]}  fxe6 {[%clk 0:01:02]} 28. Rxe6 {[%clk 0:00:04]}  Rxf1+ {[%clk 0:01:01]} 29. Qg1 {[%clk 0:00:03]}  Rxg1+ {[%clk 0:01:01]} 30. Kxg1 {[%clk 0:00:04]}  Qxe6 {[%clk 0:00:56]} 31. dxe6 {[%clk 0:00:03]}  Rxe6 {[%clk 0:00:57]} 32. Rd4 {[%clk 0:00:03]}  Nc5 {[%clk 0:00:56]} 33. Nf4 {[%clk 0:00:01]}  Re7 {[%clk 0:00:52]} 34. Nd5 {[%clk 0:00:01]}  Rf7 {[%clk 0:00:53]} 0-1


[Site "https://www.chess.com"]

[Event "Titled Tuesday Blitz April 18 Early 2023"]
[White "LeoLV10"]
[Black "Tarnowska, Aleksandra"]
[BlackFideId "1180967"]
[WhiteElo "2381"]
[BlackElo "1776"]
[Result "1-0"]
[Round "07"]
[TimeControl "180+2"]
[Date "2023.04.18"]
[WhiteClock "0:00:04"]
[BlackClock "0:00:03"]

1. e4 {[%clk 0:02:48]}  c5 {[%clk 0:03:00]} 2. Nf3 {[%clk 0:02:47]}  e6 {[%clk 0:03:00]} 3. d4 {[%clk 0:02:47]}  cxd4 {[%clk 0:03:01]} 4. Nxd4 {[%clk 0:02:48]}  a6 {[%clk 0:03:02]} 5. Nc3 {[%clk 0:02:49]}  Qc7 {[%clk 0:03:02]} 6. a3 {[%clk 0:02:48]}  b5 {[%clk 0:03:00]} 7. f4 {[%clk 0:02:44]}  Bb7 {[%clk 0:02:59]} 8. Be2 {[%clk 0:02:44]}  Bc5 {[%clk 0:02:37]} 9. Be3 {[%clk 0:02:42]}  d6 {[%clk 0:02:20]} 10. Bf3 {[%clk 0:02:39]}  Nc6 {[%clk 0:02:12]} 11. Qd2 {[%clk 0:01:56]}  Nf6 {[%clk 0:01:58]} 12. Nxc6 {[%clk 0:01:51]}  Bxc6 {[%clk 0:01:54]} 13. Rd1 {[%clk 0:01:37]}  O-O {[%clk 0:01:49]} 14. O-O {[%clk 0:01:33]}  Qb6 {[%clk 0:01:15]} 15. Bxc5 {[%clk 0:01:29]}  dxc5 {[%clk 0:01:15]} 16. Qe3 {[%clk 0:01:26]}  Rad8 {[%clk 0:00:48]} 17. b4 {[%clk 0:01:15]}  Nd7 {[%clk 0:00:41]} 18. Rd6 {[%clk 0:00:37]}  Rc8 {[%clk 0:00:13]} 19. e5 {[%clk 0:00:08]}  Bxf3 {[%clk 0:00:09]} 20. Rxb6 {[%clk 0:00:07]}  cxb4 {[%clk 0:00:06]} 21. axb4 {[%clk 0:00:06]}  Nxb6 {[%clk 0:00:07]} 22. Qxb6 {[%clk 0:00:05]}  Rxc3 {[%clk 0:00:07]} 23. Rxf3 {[%clk 0:00:05]}  Rxc2 {[%clk 0:00:07]} 24. Rf1 {[%clk 0:00:05]}  Rfc8 {[%clk 0:00:06]} 25. h3 {[%clk 0:00:04]}  R2c6 {[%clk 0:00:06]} 26. Qe3 {[%clk 0:00:04]}  g6 {[%clk 0:00:06]} 27. Rf2 {[%clk 0:00:04]}  Rc3 {[%clk 0:00:06]} 28. Qe4 {[%clk 0:00:04]}  R3c4 {[%clk 0:00:04]} 29. Qe2 {[%clk 0:00:03]}  Rxb4 {[%clk 0:00:04]} 30. Kh2 {[%clk 0:00:04]}  a5 {[%clk 0:00:05]} 31. Qa2 {[%clk 0:00:03]}  a4 {[%clk 0:00:04]} 32. Rb2 {[%clk 0:00:02]}  Rcc4 {[%clk 0:00:03]} 33. Qa3 {[%clk 0:00:01]}  Rxb2 {[%clk 0:00:03]} 34. Qxb2 {[%clk 0:00:02]}  b4 {[%clk 0:00:03]} 35. Qa2 {[%clk 0:00:03]}  b3 {[%clk 0:00:02]} 36. Qb2 {[%clk 0:00:03]}  Rb4 {[%clk 0:00:02]} 37. Qa3 {[%clk 0:00:03]}  b2 {[%clk 0:00:03]} 38. Qxb4 {[%clk 0:00:04]} 1-0


[Site "https://www.chess.com"]